bitfinex/quotes_BTCUSD_20250212
["timestamp","ask_amount","ask_price","bid_price","bid_amount"]
[1739372393922,0.0018566,95777.0,95776.0,0.012]
[1739372394197,0.0008566,95777.0,95776.0,0.007]
[1739372394439,0.0008566,95777.0,95776.0,0.171615]
[1739372394440,0.0018566,95777.0,95776.0,0.171615]
[1739372394669,0.0018566,95777.0,95776.0,0.178615]
[1739372394899,0.0008566,95777.0,95776.0,0.163615]
[1739372395941,0.0008566,95777.0,95776.0,0.156615]
[1739372396178,0.0018566,95777.0,95776.0,0.249815]
[1739372396444,0.0018566,95777.0,95776.0,0.254815]
[1739372396724,0.0008566,95777.0,95776.0,0.236815]
[1739372397005,0.0016066,95777.0,95776.0,0.254815]
[1739372397242,0.0016066,95777.0,95776.0,0.249815]
[1739372397449,0.0006066,95777.0,95776.0,0.241815]
[1739372397562,0.0016066,95777.0,95776.0,0.253815]
[1739372397774,0.0016066,95777.0,95776.0,0.248815]
[1739372399138,0.0006066,95777.0,95776.0,0.236815]
[1739372399443,0.0016066,95777.0,95776.0,0.249815]
[1739372399671,0.0016066,95777.0,95776.0,0.254815]
[1739372399889,0.0006066,95777.0,95776.0,0.241815]
[1739372400115,0.0016066,95777.0,95776.0,0.243815]
[1739372400348,0.0016066,95777.0,95776.0,0.165615]
[1739372400628,0.0016066,95777.0,95776.0,0.002]
[1739372400629,0.0006066,95777.0,95776.0,0.002]
[1739372401028,0.17294156,95777.0,95776.0,0.002]
[1739372401268,0.0016066,95777.0,95776.0,0.012]
[1739372401552,0.0016066,95777.0,95776.0,0.173615]
[1739372402039,0.0016066,95777.0,95776.0,0.256215]
[1739372402284,0.0006066,95777.0,95776.0,0.161615]
[1739372402532,0.0006066,95777.0,95776.0,0.168615]
[1739372402533,0.0016066,95777.0,95776.0,0.168615]
[1739372402785,0.0016066,95777.0,95776.0,0.27111865]
[1739372403053,0.0006066,95777.0,95776.0,0.40911865]
[1739372403333,0.0016066,95777.0,95776.0,0.49791865]
[1739372403591,0.0016066,95777.0,95776.0,0.49691865]
[1739372403852,0.0001065,95799.0,95798.0,0.156579]
[1739372404069,0.0001065,95799.0,95798.0,0.25808265]
[1739372404277,0.0001065,95799.0,95798.0,0.32920365]
[1739372404502,0.0001065,95799.0,95798.0,0.37490365]
[1739372405120,0.0002395,95799.0,95798.0,0.37490365]
[1739372406371,0.0002395,95799.0,95798.0,0.38190365]
[1739372406588,0.0002395,95799.0,95798.0,0.18620365]
[1739372406805,0.0002395,95799.0,95798.0,0.10250365]
[1739372407016,0.0002395,95799.0,95776.0,0.0757]
[1739372407165,0.0002395,95799.0,95798.0,0.007]
[1739372407376,0.0002395,95799.0,95798.0,0.021]
[1739372407603,0.0002395,95799.0,95798.0,0.01659767]
[1739372407604,0.31224315,95799.0,95798.0,0.01659767]
[1739372407804,0.34347814,95799.0,95798.0,0.01659767]
[1739372408003,0.3207011,95799.0,95798.0,0.00259767]
[1739372408428,0.17500365,95799.0,95798.0,0.00259767]
[1739372408632,0.0816,95820.0,95798.0,0.00259767]
[1739372408633,0.01,95818.0,95798.0,0.00259767]
[1739372408786,0.00017617,95800.0,95798.0,0.00259767]
[1739372409513,0.10250365,95799.0,95798.0,0.00259767]
[1739372409935,0.12550365,95799.0,95798.0,0.00259767]
[1739372410136,0.14807163,95799.0,95798.0,0.00259767]
[1739372410756,0.14807163,95799.0,95776.0,0.007]
[1739372410757,0.01,95790.0,95776.0,0.007]
[1739372410941,0.173,95798.0,95776.0,0.007]
[1739372410942,0.01,95777.0,95776.0,0.007]
[1739372411187,0.01,95777.0,95732.0,0.08424999]
[1739372411188,0.183,95776.0,95732.0,0.08424999]
[1739372411398,0.01,95769.0,95732.0,0.08424999]
[1739372411601,0.023,95766.0,95732.0,0.08424999]
[1739372411808,0.173,95764.0,95732.0,0.08424999]
[1739372411987,0.25250365,95763.0,95732.0,0.08424999]
[1739372412243,0.25250365,95763.0,95724.0,0.00022344]
[1739372412244,0.27550365,95763.0,95724.0,0.00022344]
[1739372412853,0.30983402,95763.0,95762.0,0.00035665]
[1739372413063,0.30983402,95763.0,95724.0,0.00022344]
[1739372413064,0.01,95756.0,95724.0,0.00022344]
[1739372413270,0.183,95762.0,95724.0,0.00035632]
[1739372413271,0.01,95748.0,95724.0,0.00035632]
[1739372413478,0.023,95745.0,95724.0,0.00035632]
[1739372413685,0.173,95743.0,95724.0,0.00035632]
[1739372413892,0.023,95741.0,95724.0,0.00035632]
[1739372414075,0.12298646,95740.0,95724.0,0.00035632]
[1739372414305,0.023,95739.0,95724.0,0.00035632]
[1739372414482,0.10250365,95738.0,95724.0,0.00035632]
[1739372414957,0.01084847,95757.0,95724.0,0.00035632]
[1739372415163,0.001,95741.0,95728.0,0.24185071]
[1739372415372,0.001,95741.0,95729.0,0.10250365]
[1739372415760,0.001,95741.0,95730.0,0.00104452]
[1739372415966,0.001,95741.0,95732.0,0.15]
[1739372416167,0.001,95741.0,95734.0,0.15]
[1739372416369,0.08424999,95760.0,95735.0,0.10250365]
[1739372416582,0.08424999,95760.0,95741.0,0.15]
[1739372416791,0.08424999,95752.0,95742.0,0.10354799]
[1739372417002,0.0494,95773.0,95724.0,0.01119623]
[1739372417213,0.023,95772.0,95729.0,0.007]
[1739372417417,0.001,95741.0,95732.0,0.001]
[1739372417624,0.023,95768.0,95724.0,0.00035632]
[1739372417826,0.023,95745.0,95724.0,0.00035632]
[1739372418031,0.02043259,95733.0,95724.0,0.00035632]
[1739372418243,0.10250365,95732.0,95724.0,0.00035632]
[1739372419232,0.023,95731.0,95724.0,0.00035632]
[1739372419445,0.023,95729.0,95724.0,0.00035632]
[1739372419681,0.10250365,95728.0,95724.0,0.00035632]
[1739372420014,0.0478,95739.0,95724.0,0.00135632]
[1739372420213,0.023,95736.0,95724.0,0.00135632]
[1739372420463,0.023,95734.0,95724.0,0.00035632]
[1739372420663,0.023,95732.0,95724.0,0.00035632]
[1739372420917,0.001,95729.0,95724.0,0.00035632]
[1739372421122,0.023,95727.0,95724.0,0.00035632]
[1739372421325,0.10250365,95726.0,95724.0,0.00035632]
[1739372421990,0.023,95725.0,95724.0,0.00035632]
[1739372422191,0.12550365,95725.0,95724.0,0.00035632]
[1739372422389,0.27550365,95725.0,95724.0,0.00035632]
[1739372423133,0.28550365,95725.0,95724.0,0.00135632]
[1739372423344,0.31438273,95725.0,95724.0,0.00135632]
[1739372423757,0.31538273,95725.0,95724.0,0.00035632]
[1739372423964,0.33538273,95725.0,95724.0,0.00135632]
[1739372424171,0.33438273,95725.0,95724.0,0.00135632]
[1739372424385,0.33538273,95725.0,95724.0,0.00135632]
[1739372424809,0.31438273,95725.0,95724.0,0.00135632]
[1739372425010,0.33475655,95725.0,95724.0,0.00135632]
[1739372425214,0.33475655,95725.0,95724.0,0.00035632]
[1739372425758,0.34475655,95725.0,95724.0,0.00035632]
[1739372425970,0.35475655,95725.0,95724.0,0.00035632]
[1739372426405,0.33438273,95725.0,95724.0,0.00035632]
[1739372426609,0.043,95709.0,95680.0,0.00022365]
[1739372426827,0.34950365,95709.0,95708.0,0.00249919]
[1739372427877,0.2747,95699.0,95680.0,0.00022365]
[1739372428078,0.01,95693.0,95680.0,0.00022365]
[1739372428328,0.023,95691.0,95680.0,0.00035686]
[1739372428532,0.173,95689.0,95680.0,0.00017181]
[1739372428863,0.023,95687.0,95680.0,0.00017181]
[1739372429027,0.10250365,95686.0,95680.0,0.00017181]
[1739372429595,0.023,95685.0,95680.0,0.00117181]
[1739372429801,0.10250365,95684.0,95680.0,0.00017181]
[1739372430012,0.0163737,95702.0,95680.0,0.00017181]
[1739372430197,0.02087982,95691.0,95680.0,0.00117181]
[1739372430423,0.023,95689.0,95680.0,0.00117181]
[1739372430634,0.023,95687.0,95680.0,0.00117181]
[1739372430961,0.023,95685.0,95680.0,0.00117181]
[1739372431305,0.173,95683.0,95680.0,0.00117181]
[1739372431521,0.173,95681.0,95680.0,0.00117181]
[1739372431734,0.27550365,95681.0,95680.0,0.00017181]
[1739372432149,0.27550365,95681.0,95680.0,0.00117181]
[1739372432335,0.43227365,95681.0,95680.0,0.00117181]
[1739372432535,0.43227365,95681.0,95680.0,0.00017181]
[1739372432709,0.52006045,95681.0,95680.0,0.00017181]
[1739372432909,0.52006045,95681.0,95680.0,0.00217181]
[1739372433310,0.27550365,95681.0,95680.0,0.00217181]
[1739372433542,0.10250365,95681.0,95680.0,0.00217181]
[1739372433742,0.01077659,95693.0,95680.0,0.00217181]
[1739372434062,0.01,95718.0,95680.0,0.00217181]
[1739372434264,0.10250365,95712.0,95680.0,0.00217181]
[1739372434469,0.02118974,95706.0,95680.0,0.00217181]
[1739372434668,0.10250365,95705.0,95680.0,0.00217181]
[1739372435049,0.173,95700.0,95680.0,0.00217181]
[1739372435226,0.11250365,95701.0,95680.0,0.00217181]
[1739372435227,0.173,95698.0,95680.0,0.00017181]
[1739372435430,0.32977,95681.0,95680.0,0.00017181]
[1739372435626,0.45358903,95681.0,95680.0,0.00017181]
[1739372437286,0.45358903,95681.0,95680.0,0.00117181]
[1739372437504,0.43227365,95681.0,95680.0,0.00117181]
[1739372437711,0.40927365,95681.0,95680.0,0.00117181]
[1739372437917,0.49516838,95681.0,95680.0,0.00117181]
[1739372439404,0.40927365,95681.0,95680.0,0.00117181]
[1739372439619,0.40927365,95681.0,95680.0,0.00017181]
[1739372439875,0.43227365,95681.0,95680.0,0.00017181]
[1739372444191,0.43227365,95681.0,95666.0,0.00022386]
[1739372444192,0.3005,95680.0,95666.0,0.00022386]
[1739372444432,0.3005,95680.0,95620.0,0.24185071]
[1739372444433,0.306847,95634.0,95612.0,0.00022386]
[1739372444657,0.179856,95629.0,95612.0,0.00022386]
[1739372445094,0.179856,95629.0,95628.0,0.00035709]
[1739372445305,0.28235965,95629.0,95628.0,0.00035709]
[1739372445511,0.179856,95629.0,95628.0,0.00035709]
[1739372446349,0.36308505,95629.0,95628.0,0.01535709]
[1739372446597,0.28235965,95629.0,95628.0,0.01535709]
[1739372447030,0.45235965,95629.0,95628.0,0.01535709]
[1739372447249,0.45235965,95629.0,95612.0,0.00022386]
[1739372447250,0.306882,95613.0,95612.0,0.00022386]
[1739372447488,0.40938565,95613.0,95612.0,0.00022386]
[1739372447703,0.47085278,95613.0,95612.0,0.00022386]
[1739372447909,0.43238565,95613.0,95612.0,0.00022386]
[1739372448117,0.59635643,95613.0,95612.0,0.00022386]
[1739372448554,0.59635643,95613.0,95573.0,0.209262]
[1739372448555,0.59635643,95613.0,95548.0,0.0759]
[1739372448556,0.306928,95585.0,95548.0,0.0759]
[1739372448789,0.156977,95556.0,95548.0,0.0759]
[1739372449006,0.28196508,95584.0,95548.0,0.0759]
[1739372449233,0.08424999,95580.0,95549.0,0.00693134]
[1739372449443,0.209218,95594.0,95561.0,0.15]
[1739372449649,0.156926,95587.0,95577.0,0.15694]
[1739372449858,0.156926,95587.0,95562.0,0.18500365]
[1739372449859,0.209233,95587.0,95564.0,0.156962]
[1739372450150,0.209255,95577.0,95563.0,0.15]
[1739372450379,0.209255,95577.0,95562.0,0.08965279]
[1739372450380,0.156964,95563.0,95562.0,0.08965279]
[1739372450563,0.156964,95563.0,95562.0,0.00715279]
[1739372450792,0.209277,95567.0,95561.0,0.00044421]
[1739372451003,0.156964,95563.0,95561.0,0.00044421]
[1739372451933,0.2155164,95563.0,95561.0,0.00044421]
[1739372452175,0.2145164,95563.0,95561.0,0.00044421]
[1739372452414,0.157964,95563.0,95561.0,0.00044421]
[1739372452668,0.003,95563.0,95561.0,0.00044421]
[1739372453129,0.003,95563.0,95561.0,0.15741121]
[1739372453360,0.003,95563.0,95562.0,0.00715287]
[1739372453619,0.003,95563.0,95562.0,0.15715287]
[1739372453872,0.003,95563.0,95562.0,0.17493279]
[1739372454113,0.003,95563.0,95562.0,0.00715287]
[1739372454584,0.002,95563.0,95562.0,0.00715287]
[1739372455051,0.156951,95571.0,95562.0,0.16411787]
[1739372455318,0.209231,95588.0,95562.0,0.00815287]
[1739372455548,0.156949,95572.0,95563.0,0.155963]
[1739372455771,0.1350686,95587.0,95562.0,0.00715287]
[1739372455772,0.156953,95570.0,95562.0,0.00715287]
[1739372456027,0.001,95563.0,95562.0,0.00815287]
[1739372456519,0.001,95563.0,95562.0,0.33635652]
[1739372456768,0.001,95563.0,95562.0,0.38165652]
[1739372457030,0.08424999,95601.0,95562.0,0.38165652]
[1739372457031,0.08424999,95601.0,95564.0,0.15]
[1739372457274,0.08424999,95601.0,95566.0,0.15]
[1739372457510,0.08424999,95601.0,95594.0,0.156913]
[1739372457774,0.156894,95606.0,95598.0,0.156906]
[1739372457967,0.08424999,95621.0,95595.0,0.00131523]
[1739372458175,0.29338499,95632.0,95595.0,0.00131523]
[1739372458176,0.29338499,95632.0,95596.0,0.10250365]
[1739372458380,0.156879,95615.0,95602.0,0.209199]
[1739372458590,0.156883,95613.0,95603.0,0.209197]
[1739372458806,0.10250365,95627.0,95603.0,0.00559776]
[1739372459012,0.209155,95623.0,95608.0,0.15689]
[1739372459221,0.10250365,95626.0,95608.0,0.15689]
[1739372459431,0.156881,95614.0,95609.0,0.00557869]
[1739372459637,0.156876,95617.0,95609.0,0.16246669]
[1739372459840,0.02956128,95625.0,95603.0,0.003]
[1739372460019,0.156874,95619.0,95610.0,0.16246052]
[1739372460255,0.001,95621.0,95603.0,0.212196]
[1739372460553,0.156877,95617.0,95607.0,0.209189]
[1739372460682,0.023,95616.0,95604.0,0.00559459]
[1739372460875,0.07749095,95629.0,95603.0,0.003]
[1739372460876,0.179897,95604.0,95603.0,0.003]
[1739372461085,0.43240065,95604.0,95603.0,0.003]
[1739372461331,0.43240065,95604.0,95598.0,0.0001066]
[1739372461500,0.179905,95599.0,95598.0,0.0001066]
[1739372461732,0.28240865,95599.0,95598.0,0.0001066]
[1739372462831,0.27148128,95599.0,95598.0,0.0001066]
[1739372463037,0.004,95604.0,95598.0,0.00055081]
[1739372463249,0.156904,95600.0,95598.0,0.00055081]
[1739372463457,0.209198,95603.0,95598.0,0.00055081]
[1739372463664,0.12650365,95599.0,95598.0,0.00055081]
[1739372463877,0.27550365,95599.0,95598.0,0.00055081]
[1739372464305,0.43240865,95599.0,95598.0,0.00055081]
[1739372464727,0.44721109,95599.0,95598.0,0.00055081]
[1739372464936,0.45721109,95599.0,95598.0,0.00055081]
[1739372465147,0.5448721,95599.0,95598.0,0.00055081]
[1739372465411,0.5448721,95599.0,95542.0,0.0496]
[1739372465412,0.15,95582.0,95542.0,0.0496]
[1739372465619,0.023,95554.0,95546.0,0.156991]
[1739372466045,0.156975,95557.0,95547.0,0.16278969]
[1739372466255,0.156973,95558.0,95549.0,0.156986]
[1739372466459,0.08424999,95576.0,95547.0,0.00579969]
[1739372466683,0.023,95554.0,95550.0,0.00579015]
[1739372466879,0.023,95554.0,95548.0,0.00579651]
[1739372467503,0.156968,95561.0,95550.0,0.156984]
[1739372467718,0.15,95581.0,95550.0,0.156984]
[1739372467719,0.156971,95559.0,95550.0,0.156984]
[1739372467931,0.001,95554.0,95550.0,0.158984]
[1739372468135,0.001,95554.0,95551.0,0.209312]
[1739372468352,0.156946,95575.0,95564.0,0.156961]
[1739372468551,0.001,95554.0,95553.0,0.30698]
[1739372468788,0.001,95554.0,95553.0,0.40948365]
[1739372469295,0.08424999,95580.0,95550.0,0.156985]
[1739372469550,0.023,95555.0,95549.0,0.00726093]
[1739372469805,0.10250365,95579.0,95549.0,0.00726093]
[1739372469806,0.023,95556.0,95549.0,0.00726093]
[1739372470077,0.156982,95553.0,95551.0,0.004]
[1739372470322,0.023,95552.0,95551.0,0.004]
[1739372470626,0.001,95554.0,95551.0,0.004]
[1739372470998,0.001,95554.0,95552.0,0.00726763]
[1739372470999,0.024,95554.0,95552.0,0.00726763]
[1739372471216,0.12550365,95553.0,95552.0,0.00726763]
[1739372471423,0.023,95552.0,95542.0,0.0001256]
[1739372471672,0.023,95543.0,95542.0,0.0001256]
[1739372471924,0.12550365,95543.0,95542.0,0.0001256]
[1739372472169,0.04918217,95543.0,95542.0,0.0001256]
[1739372472438,0.10250365,95543.0,95542.0,0.0001256]
[1739372472685,0.12550365,95543.0,95542.0,0.0001256]
[1739372473148,0.12850365,95543.0,95542.0,0.0001256]
[1739372473787,0.28550065,95543.0,95542.0,0.0001256]
[1739372474846,0.43250065,95543.0,95542.0,0.0001256]
[1739372475063,0.51761542,95543.0,95542.0,0.0001256]
[1739372475938,0.56481542,95543.0,95542.0,0.0001256]
[1739372476580,0.48270065,95543.0,95542.0,0.0001256]
[1739372477043,1.05725353,95543.0,95542.0,0.0001256]
[1739372477256,1.62848953,95543.0,95542.0,0.0001256]
[1739372477469,0.157063,95503.0,95502.0,0.0001068]
[1739372477683,0.28256665,95503.0,95502.0,0.00055081]
[1739372478364,0.023,95503.0,95502.0,0.00055081]
[1739372478585,0.13295288,95543.0,95502.0,0.00055081]
[1739372478586,0.157036,95520.0,95502.0,0.00055081]
[1739372478807,0.157035,95520.0,95502.0,0.20996981]
[1739372479016,0.12422394,95537.0,95502.0,0.00055081]
[1739372479228,0.08424999,95513.0,95503.0,0.00769726]
[1739372479450,0.08424999,95527.0,95502.0,0.00055081]
[1739372479660,0.023,95511.0,95502.0,0.00055081]
[1739372479870,0.180063,95503.0,95502.0,0.00055081]
[1739372480087,0.03214899,95537.0,95502.0,0.00055081]
[1739372480300,0.20938,95520.0,95508.0,0.157054]
[1739372480507,0.157041,95516.0,95508.0,0.157054]
[1739372480764,0.157041,95516.0,95502.0,0.00055081]
[1739372480765,0.15704,95517.0,95509.0,0.00150361]
[1739372480998,0.209363,95528.0,95502.0,0.00055081]
[1739372481207,0.359349,95534.0,95510.0,0.2094]
[1739372481430,0.209372,95524.0,95502.0,0.00055081]
[1739372481639,0.10250365,95528.0,95511.0,0.00764336]
[1739372481856,0.08424999,95548.0,95502.0,0.00055081]
[1739372481857,0.08424999,95570.0,95513.0,0.209395]
[1739372482103,0.209329,95544.0,95520.0,0.37515024]
[1739372482318,0.08424999,95548.0,95536.0,0.157008]
[1739372482531,0.156994,95545.0,95533.0,0.20935]
[1739372482739,0.209321,95547.0,95529.0,0.209358]
[1739372482948,0.209321,95547.0,95537.0,0.00144224]
[1739372483392,0.156997,95543.0,95538.0,0.00748004]
[1739372483724,0.156997,95543.0,95538.0,0.00723004]
[1739372483960,0.001,95545.0,95539.0,0.075]
[1739372484165,0.001,95545.0,95540.0,0.157001]
[1739372484419,0.001,95545.0,95540.0,0.00118567]
[1739372484655,0.18,95541.0,95540.0,0.00118567]
[1739372484920,0.33178701,95541.0,95540.0,0.00118567]
[1739372485175,0.33178701,95541.0,95537.0,0.00013334]
[1739372485176,0.330005,95538.0,95537.0,0.00013334]
[1739372485384,0.43250865,95538.0,95537.0,0.00013334]
[1739372486873,0.43350865,95538.0,95537.0,0.00313334]
[1739372487076,0.55241482,95538.0,95537.0,0.00313334]
[1739372487725,0.44991117,95538.0,95537.0,0.00313334]
[1739372488149,0.44991117,95538.0,95537.0,0.00013334]
[1739372488545,0.46191117,95538.0,95537.0,0.00013334]
[1739372489010,0.46991117,95538.0,95537.0,0.00013334]
[1739372489219,0.45991117,95538.0,95537.0,0.00013334]
[1739372489437,0.57441482,95538.0,95537.0,0.00013334]
[1739372489650,0.57341482,95538.0,95537.0,0.00013334]
[1739372489858,0.57141482,95538.0,95537.0,0.00013334]
[1739372490084,1.10731482,95538.0,95537.0,0.00013334]
[1739372490298,1.10731482,95538.0,95502.0,0.0001068]
[1739372490299,0.157051,95510.0,95502.0,0.0001068]
[1739372490511,0.25955465,95510.0,95509.0,0.00055071]
[1739372490731,0.28255465,95510.0,95509.0,0.00055071]
[1739372490948,0.43255465,95510.0,95509.0,0.00055071]
[1739372491400,0.48425213,95510.0,95509.0,0.00055071]
[1739372491617,0.330063,95503.0,95502.0,0.0001068]
[1739372491826,0.5350703,95503.0,95502.0,0.00024025]
[1739372492045,0.43256665,95503.0,95502.0,0.00024025]
[1739372493021,0.28256665,95503.0,95502.0,0.00024025]
[1739372493741,0.43256665,95503.0,95502.0,0.00024025]
[1739372494389,0.28256665,95503.0,95502.0,0.00024025]
[1739372494602,0.25956665,95503.0,95502.0,0.00024025]
[1739372494842,0.02923258,95544.0,95502.0,0.00024025]
[1739372495068,0.157055,95508.0,95503.0,0.0758]
[1739372495315,0.180063,95503.0,95502.0,0.00024025]
[1739372495557,0.28256665,95503.0,95502.0,0.00024025]
[1739372495785,0.35270542,95503.0,95502.0,0.00024025]
[1739372497450,0.28256665,95503.0,95502.0,0.00024025]
[1739372497696,0.48548041,95503.0,95502.0,0.00024025]
[1739372497928,0.15712,95468.0,95467.0,0.0001068]
[1739372498168,0.023,95482.0,95467.0,0.0001068]
[1739372498407,0.16752792,95503.0,95502.0,0.0001068]
[1739372498679,0.34052792,95503.0,95502.0,0.0001068]
[1739372498921,1.02949214,95503.0,95502.0,0.0001068]
[1739372499169,1.12199579,95503.0,95502.0,0.0001068]
[1739372499439,1.16343518,95503.0,95502.0,8e-07]
[1739372501087,1.15343518,95503.0,95502.0,8e-07]
[1739372501386,1.14343518,95503.0,95502.0,8e-07]
[1739372501501,1.15343518,95503.0,95502.0,8e-07]
[1739372501737,0.15712,95468.0,95467.0,0.0001068]
[1739372501954,0.28262365,95468.0,95467.0,0.0001068]
[1739372502397,0.15712,95468.0,95467.0,0.0001068]
[1739372502636,0.209479,95475.0,95467.0,0.0001068]
[1739372502909,0.209461,95483.0,95467.0,0.0001068]
[1739372503156,0.18012,95468.0,95467.0,0.0001068]
[1739372503405,0.28262365,95468.0,95467.0,0.0001068]
[1739372504310,0.15712,95468.0,95467.0,0.0001068]
[1739372504519,0.15712,95468.0,95467.0,0.0021068]
[1739372504943,0.15712,95468.0,95467.0,0.0001068]
[1739372505385,0.157114,95472.0,95467.0,0.0758068]
[1739372505597,0.10496354,95489.0,95467.0,0.08360178]
[1739372505814,0.10250365,95488.0,95467.0,0.24072278]
[1739372506026,0.10250365,95488.0,95467.0,0.08360178]
[1739372506239,0.157105,95478.0,95467.0,0.08360178]
[1739372506504,0.157101,95480.0,95468.0,0.15712]
[1739372506719,0.10250365,95487.0,95467.0,0.08360178]
[1739372506924,0.157096,95483.0,95468.0,0.0494]
[1739372507133,0.15709,95487.0,95474.0,0.15711]
[1739372507342,0.30277403,95496.0,95474.0,0.157109]
[1739372507554,0.157092,95485.0,95474.0,0.157109]
[1739372507812,0.157092,95485.0,95468.0,0.258893]
[1739372507813,0.157089,95488.0,95475.0,0.157107]
[1739372508054,0.09334203,95496.0,95475.0,0.01777992]
[1739372508266,0.09334203,95496.0,95477.0,0.209474]
[1739372508267,0.157078,95494.0,95477.0,0.209474]
[1739372508480,0.157079,95493.0,95482.0,0.157096]
[1739372508700,0.157093,95485.0,95476.0,0.0805]
[1739372509127,0.157094,95484.0,95477.0,0.00637945]
[1739372509339,0.157091,95486.0,95477.0,0.00770325]
[1739372509772,0.157096,95483.0,95477.0,0.00770325]
[1739372509983,0.209459,95484.0,95477.0,0.00770325]
[1739372510205,0.209459,95484.0,95476.0,0.0805]
[1739372510206,0.19584568,95496.0,95476.0,0.0805]
[1739372510419,0.12550365,95495.0,95469.0,0.0001068]
[1739372510645,0.157117,95470.0,95469.0,0.0001068]
[1739372510853,0.209464,95482.0,95469.0,0.0001068]
[1739372510854,0.157113,95473.0,95469.0,0.0001068]
[1739372511075,0.157117,95470.0,95469.0,0.0001068]
[1739372511292,0.27533235,95470.0,95469.0,0.0001068]
[1739372511511,0.209481,95475.0,95469.0,0.0001068]
[1739372511736,0.209445,95491.0,95469.0,0.0001068]
[1739372511962,0.08424999,95501.0,95479.0,0.24384205]
[1739372512169,0.29367199,95501.0,95480.0,0.0791]
[1739372512419,0.157072,95498.0,95480.0,0.0791]
[1739372512630,0.20955468,95501.0,95493.0,0.157079]
[1739372512839,0.20955468,95501.0,95482.0,0.209463]
[1739372512840,0.15719868,95501.0,95482.0,0.209463]
[1739372513048,0.00013268,95501.0,95494.0,0.0012865]
[1739372513272,0.0419182,95500.0,95494.0,0.0012865]
[1739372513495,0.157076,95495.0,95494.0,0.0012865]
[1739372513935,0.00013268,95501.0,95494.0,0.0012865]
[1739372514217,0.00013268,95501.0,95500.0,0.157068]
[1739372514642,0.00013268,95501.0,95497.0,0.157072]
[1739372514857,0.00013268,95501.0,95496.0,0.157073]
[1739372515074,0.00013268,95501.0,95497.0,0.157072]
[1739372515288,0.1937511,95500.0,95495.0,0.0075664]
[1739372515529,0.15707,95499.0,95495.0,0.0075664]
[1739372515740,0.209424,95500.0,95495.0,0.0075664]
[1739372515948,0.157069,95499.0,95495.0,0.0075664]
[1739372516162,0.00013268,95501.0,95500.0,0.157068]
[1739372516371,0.00013268,95501.0,95500.0,0.280968]
[1739372516807,0.00013268,95501.0,95500.0,0.28224135]
[1739372517464,0.00013268,95501.0,95500.0,0.534745]
[1739372518109,0.00013268,95501.0,95500.0,0.537745]
[1739372518335,9.268e-05,95501.0,95500.0,0.53347165]
[1739372518989,9.268e-05,95501.0,95500.0,0.430968]
[1739372519680,0.00109268,95501.0,95500.0,0.286968]
[1739372519892,0.00109268,95501.0,95489.0,0.209446]
[1739372520114,0.00109268,95501.0,95494.0,0.157076]
[1739372520322,0.00109268,95501.0,95489.0,0.285646]
[1739372520323,0.00209268,95501.0,95500.0,0.006]
[1739372520557,0.00109268,95501.0,95494.0,0.157077]
[1739372520783,0.15915868,95501.0,95500.0,0.006]
[1739372520993,0.15915868,95501.0,95470.0,0.3460939]
[1739372520994,0.157097,95482.0,95475.0,0.0762]
[1739372521214,0.12659633,95501.0,95468.0,0.0457]
[1739372521215,0.023,95498.0,95468.0,0.0457]
[1739372521421,0.023,95498.0,95437.0,0.01]
[1739372521422,0.330076,95495.0,95494.0,0.005]
[1739372521635,0.43257965,95495.0,95494.0,0.005]
[1739372521902,0.45336514,95495.0,95494.0,0.005]
[1739372522377,0.48594846,95495.0,95494.0,0.005]
[1739372522595,0.157117,95470.0,95441.0,0.0785]
[1739372522804,0.25962065,95470.0,95448.0,0.157153]
[1739372523013,0.25962065,95470.0,95450.0,0.24359025]
[1739372523265,0.157113,95473.0,95464.0,0.157126]
[1739372523510,0.157099,95481.0,95471.0,0.157115]
[1739372523765,0.157098,95482.0,95470.0,0.0761]
[1739372524022,0.157104,95478.0,95471.0,4e-05]
[1739372524276,0.25503548,95495.0,95471.0,4e-05]
[1739372524277,0.157112,95473.0,95471.0,4e-05]
[1739372524528,0.01195147,95472.0,95471.0,4e-05]
[1739372524766,0.25961565,95473.0,95471.0,4e-05]
[1739372524988,0.10250365,95472.0,95471.0,4e-05]
[1739372525198,0.12550365,95472.0,95471.0,4e-05]
[1739372526258,0.12550365,95472.0,95467.0,0.0001068]
[1739372526259,0.25428365,95472.0,95466.0,4e-07]
[1739372526478,0.25428365,95472.0,95453.0,0.0001068]
[1739372526479,0.180143,95454.0,95453.0,0.0001068]
[1739372526687,0.43264665,95454.0,95453.0,0.0002402]
[1739372527582,0.157219,95408.0,95407.0,0.00015069]
[1739372527789,0.28272265,95408.0,95407.0,0.00059522]
[1739372528000,0.25972265,95408.0,95407.0,0.00059522]
[1739372528409,0.157219,95408.0,95407.0,0.00059522]
[1739372528631,0.157216,95410.0,95407.0,0.00059522]
[1739372528823,0.08424999,95429.0,95407.0,0.00059522]
[1739372528824,0.209603,95419.0,95407.0,0.00059522]
[1739372529029,0.01952224,95409.0,95407.0,0.00059522]
[1739372529710,0.43263607,95408.0,95407.0,0.00159522]
[1739372529994,0.43263607,95408.0,95407.0,0.00059522]
[1739372530245,0.43263607,95408.0,95407.0,0.00159522]
[1739372530463,0.43263607,95408.0,95407.0,0.0008931]
[1739372530464,0.47515831,95408.0,95407.0,0.0008931]
[1739372531085,0.4859115,95408.0,95407.0,0.0008931]
[1739372531504,0.51606897,95408.0,95407.0,0.0008931]
[1739372531948,0.54807467,95408.0,95407.0,0.0008931]
[1739372532155,0.51606897,95408.0,95407.0,0.0008931]
[1739372532454,0.173,95407.0,95406.0,0.0001069]
[1739372532689,0.27550365,95407.0,95406.0,0.0001069]
[1739372533620,0.27550365,95407.0,95373.0,0.1573815]
[1739372533621,0.157275,95374.0,95373.0,0.0001065]
[1739372534100,0.2149412,95374.0,95373.0,0.0001065]
[1739372534590,0.157266,95380.0,95373.0,0.0001065]
[1739372534807,0.10250365,95392.0,95373.0,0.0001065]
[1739372535053,0.00044399,95380.0,95373.0,0.0001065]
[1739372535276,0.00044399,95380.0,95379.0,0.157267]
[1739372535489,0.00044399,95380.0,95377.0,0.15727]
[1739372535724,0.00044399,95380.0,95373.0,0.0001065]
[1739372535725,0.11827375,95379.0,95373.0,0.0001065]
[1739372535926,0.15,95374.0,95373.0,0.0001065]
[1739372536146,0.25250365,95374.0,95373.0,0.0001065]
[1739372536550,0.157272,95376.0,95373.0,0.0001065]